bitfinex/quotes_BTCUSD_20220304
["timestamp","ask_amount","ask_price","bid_price","bid_amount"]
[1646411700095,0.26941152,40665.0,40658.0,0.02578]
[1646411700096,0.38093885,40665.0,40658.0,0.02578]
[1646411700297,0.23699047,40662.0,40658.0,0.02578]
[1646411700596,0.11152733,40665.0,40658.0,0.02578]
[1646411700802,0.24049921,40669.0,40665.0,0.02454]
[1646411700996,0.24049921,40669.0,40666.0,0.369676]
[1646411701396,0.23389921,40669.0,40668.0,0.369676]
[1646411701596,0.23389921,40669.0,40668.0,0.669676]
[1646411701796,0.23389921,40669.0,40668.0,0.719676]
[1646411701995,0.23389921,40669.0,40668.0,1.520376]
[1646411702196,0.23389921,40669.0,40668.0,0.96929926]
[1646411702395,0.23389921,40669.0,40668.0,0.768976]
[1646411702641,0.23389921,40669.0,40668.0,0.3993]
[1646411703041,0.23389921,40669.0,40668.0,0.768976]
[1646411703242,0.23389921,40669.0,40668.0,1.520376]
[1646411703447,0.23389921,40669.0,40668.0,1.220376]
[1646411703740,0.23389921,40669.0,40668.0,1.40575169]
[1646411703941,0.23389921,40669.0,40668.0,0.468976]
[1646411704342,0.23389921,40669.0,40668.0,0.0993]
[1646411704541,0.23389921,40669.0,40667.0,0.369676]
[1646411704741,0.23389921,40669.0,40666.0,0.05]
[1646411705342,0.23389921,40669.0,40667.0,0.369676]
[1646411705544,0.23389921,40669.0,40665.0,0.004]
[1646411705747,0.28389921,40669.0,40665.0,0.004]
[1646411705947,0.26390142,40667.0,40665.0,0.004]
[1646411706152,0.05,40667.0,40662.0,0.061526]
[1646411706396,0.20499197,40668.0,40662.0,0.061526]
[1646411706589,0.06152355,40667.0,40663.0,0.061522]
[1646411707092,0.06152355,40667.0,40664.0,0.123035]
[1646411707491,0.06152355,40667.0,40664.0,0.173035]
[1646411707893,0.0011,40675.0,40665.0,1.892699]
[1646411708192,0.0011,40675.0,40667.0,1.121076]
[1646411708389,0.0011,40675.0,40669.0,0.369676]
[1646411708591,0.0011,40675.0,40669.0,0.418976]
[1646411709591,0.0011,40675.0,40669.0,1.170376]
[1646411709791,0.0011,40675.0,40669.0,1.4625768]
[1646411710143,0.30260609,40673.0,40671.0,0.369676]
[1646411710345,0.30260609,40673.0,40671.0,0.669676]
[1646411710744,0.30260609,40673.0,40671.0,0.369676]
[1646411711945,0.2411,40673.0,40671.0,0.369676]
[1646411712750,0.0011,40677.0,40673.0,0.77594]
[1646411712953,0.0011,40677.0,40676.0,1.145616]
[1646411713150,0.0011,40677.0,40676.0,1.494916]
[1646411713351,0.0011,40677.0,40676.0,1.594916]
[1646411714004,0.0011,40677.0,40676.0,1.570376]
[1646411714404,0.0011,40677.0,40676.0,0.818976]
[1646411715006,0.0011,40677.0,40676.0,0.518976]
[1646411715406,0.0011,40677.0,40676.0,0.418976]
[1646411715612,0.0011,40677.0,40676.0,0.0493]
[1646411715808,0.0011,40677.0,40676.0,0.418976]
[1646411716006,0.0011,40677.0,40674.0,0.061489]
[1646411716205,0.16106125,40676.0,40674.0,0.061489]
[1646411716409,0.0011,40677.0,40674.0,0.061489]
[1646411716806,0.0011,40677.0,40675.0,0.369676]
[1646411717407,0.0011,40677.0,40675.0,0.419676]
[1646411717845,0.0011,40677.0,40676.0,0.369676]
[1646411719646,0.2411,40677.0,40676.0,0.369676]
[1646411722009,0.5411,40677.0,40674.0,0.245968]
[1646411722206,0.12301583,40676.0,40672.0,0.061498]
[1646411722403,0.12301583,40676.0,40668.0,0.2022099]
[1646411722604,0.3993,40675.0,40663.0,0.01749518]
[1646411722804,0.0993,40675.0,40663.0,0.01749518]
[1646411723006,0.0993,40675.0,40662.0,0.123047]
[1646411723406,0.0993,40675.0,40669.0,0.061518]
[1646411723607,0.25914992,40670.0,40669.0,0.061518]
[1646411723808,0.30890757,40670.0,40669.0,0.061518]
[1646411724205,0.35890757,40670.0,40666.0,0.123033]
[1646411724409,0.35890757,40670.0,40667.0,0.05]
[1646411725249,0.25349673,40669.0,40667.0,0.05]
[1646411726052,0.3,40668.0,40662.0,0.246092]
[1646411726255,0.30768247,40667.0,40654.0,0.5715]
[1646411726450,0.0493,40666.0,40653.0,0.061541]
[1646411726651,0.061539,40663.0,40653.0,0.061541]
[1646411727054,0.2399663,40655.0,40653.0,0.061541]
[1646411727250,0.48806052,40655.0,40653.0,0.061541]
[1646411728251,0.54959586,40655.0,40653.0,0.12307]
[1646411729091,0.53439781,40655.0,40653.0,0.12307]
[1646411729294,0.34784759,40655.0,40653.0,0.12307]
[1646411729490,0.34784759,40655.0,40654.0,0.05]
[1646411729695,0.52630359,40655.0,40654.0,0.05]
[1646411730293,0.57630359,40655.0,40654.0,0.05]
[1646411730496,0.87630359,40655.0,40649.0,0.123081]
[1646411730694,0.36688843,40650.0,40639.0,0.01316079]
[1646411730894,0.36688843,40650.0,40634.0,0.001]
[1646411731095,0.36688843,40650.0,40640.0,0.01310382]
[1646411731294,0.36688843,40650.0,40635.0,0.01787589]
[1646411731493,0.24226566,40647.0,40638.0,0.369676]
[1646411731694,0.05,40647.0,40643.0,0.184658]
[1646411731896,0.11155774,40647.0,40643.0,0.184658]
[1646411732098,0.06155774,40647.0,40643.0,0.184658]
[1646411732297,0.11155774,40647.0,40643.0,0.184658]
[1646411732496,0.11155774,40647.0,40644.0,0.061551]
[1646411733641,0.11155774,40647.0,40644.0,0.111551]
[1646411734243,0.17311274,40647.0,40644.0,0.05]
[1646411737395,0.11155774,40647.0,40644.0,0.234654]
[1646411738201,0.11155774,40647.0,40644.0,0.05]
[1646411738496,0.17311374,40647.0,40643.0,0.173105]
[1646411738695,0.12310985,40646.0,40643.0,0.173105]
[1646411739099,0.33808336,40645.0,40643.0,0.173105]
[1646411739299,0.33808336,40645.0,40641.0,0.061565]
[1646411739300,0.48470423,40644.0,40641.0,0.061565]
[1646411739512,0.18470423,40644.0,40641.0,0.061565]
[1646411739704,0.05,40643.0,40642.0,0.369676]
[1646411739898,0.05,40643.0,40642.0,0.38297524]
[1646411740150,0.18470423,40644.0,40642.0,0.38297524]
[1646411740151,0.06155434,40645.0,40642.0,0.38297524]
[1646411740748,0.06155434,40645.0,40642.0,0.43297524]
[1646411740948,0.06155434,40645.0,40642.0,0.419676]
[1646411741851,0.29,40647.0,40644.0,0.369676]
[1646411742052,0.24,40647.0,40644.0,0.492762]
[1646411742250,0.12307532,40654.0,40646.0,1.4]
[1646411742451,0.12307532,40654.0,40647.0,0.369676]
[1646411742654,0.2944858,40653.0,40647.0,0.05]
[1646411743051,0.06153457,40652.0,40647.0,0.05]
[1646411743250,0.06153457,40652.0,40648.0,0.369676]
[1646411745794,0.06153457,40652.0,40648.0,0.42645456]
[1646411746393,0.06153457,40652.0,40648.0,0.369676]
[1646411746593,0.06153457,40652.0,40648.0,0.52433047]
[1646411746794,0.06153457,40652.0,40648.0,0.369676]
[1646411749851,0.06153457,40652.0,40648.0,0.18121642]
[1646411749852,0.049,40651.0,40648.0,0.18121642]
[1646411750046,0.236,40652.0,40648.0,0.18121642]
[1646411750347,0.236,40652.0,40648.0,0.23121642]
[1646411750555,0.236,40652.0,40649.0,0.7514]
[1646411750747,0.236,40652.0,40651.0,0.8014]
[1646411750945,0.236,40652.0,40651.0,0.419283]
[1646411751146,0.236,40652.0,40651.0,0.469283]
[1646411751396,0.236,40652.0,40651.0,0.6762231]
[1646411751592,0.236,40652.0,40651.0,0.469283]
[1646411752390,0.236,40652.0,40651.0,0.53081728]
[1646411753194,0.47498129,40652.0,40651.0,0.53081728]
[1646411754195,0.47498129,40652.0,40651.0,0.11153428]
[1646411754396,0.47498129,40652.0,40646.0,0.001]
[1646411754597,0.0657634,40650.0,40646.0,0.001]
[1646411754997,0.20268147,40648.0,40646.0,0.001]
[1646411755247,0.061552,40649.0,40646.0,0.001]
[1646411756845,0.47498129,40652.0,40647.0,0.369283]
[1646411757046,0.236,40652.0,40649.0,0.369283]
[1646411757247,0.236,40652.0,40649.0,0.419283]
[1646411757447,0.236,40652.0,40649.0,0.63423424]
[1646411757647,0.236,40652.0,40649.0,0.419283]
[1646411758148,0.236,40652.0,40649.0,0.480813]
[1646411758548,0.236,40652.0,40650.0,0.05]
[1646411758747,0.236,40652.0,40651.0,0.369283]
[1646411758999,0.236,40652.0,40651.0,0.419283]
[1646411760198,0.236,40652.0,40650.0,0.05]
[1646411760397,0.236,40652.0,40650.0,0.1]
[1646411760598,0.236,40652.0,40648.0,0.8044]
[1646411760799,0.236,40652.0,40648.0,0.8514]
[1646411761000,0.236,40652.0,40649.0,0.002]
[1646411761397,0.236,40652.0,40650.0,0.369283]
[1646411761598,0.236,40652.0,40649.0,0.002]
[1646411761799,0.236,40652.0,40650.0,0.05]
[1646411762196,0.236,40652.0,40648.0,0.8514]
[1646411763141,0.236,40652.0,40649.0,0.369283]
[1646411763142,0.26118763,40650.0,40649.0,0.369283]
[1646411763941,0.297538,40652.0,40649.0,0.669283]
[1646411764142,0.236,40652.0,40649.0,0.719283]
[1646411764444,0.236,40652.0,40649.0,0.769283]
[1646411764841,0.31187814,40651.0,40649.0,0.469283]
[1646411765941,0.297534,40652.0,40649.0,0.469283]
[1646411767195,0.297534,40652.0,40651.0,0.369283]
[1646411767692,0.297534,40652.0,40651.0,0.419283]
[1646411769994,0.297534,40652.0,40651.0,0.719283]
[1646411772646,0.297534,40652.0,40651.0,0.419283]
[1646411773245,0.297534,40652.0,40651.0,0.41921793]
[1646411774295,0.297534,40652.0,40651.0,0.04993493]
[1646411774697,0.297534,40652.0,40647.0,0.06153331]
[1646411774895,0.297534,40652.0,40649.0,0.369283]
[1646411775298,0.297534,40652.0,40648.0,0.002]
[1646411776297,0.297534,40652.0,40646.0,0.7524]
[1646411776499,0.297534,40652.0,40648.0,0.369283]
[1646411776696,0.297534,40652.0,40647.0,0.369283]
[1646411776897,0.297534,40652.0,40648.0,0.369283]
[1646411777103,0.297534,40652.0,40649.0,0.369283]
[1646411777498,0.297534,40652.0,40649.0,0.419039]
[1646411777745,0.297534,40652.0,40651.0,0.369283]
[1646411778548,0.1,40666.0,40651.0,0.369283]
[1646411778549,0.184596,40667.0,40653.0,0.369283]
[1646411778748,0.0011,40668.0,40653.0,0.369283]
[1646411778749,0.0011,40668.0,40663.0,0.15]
[1646411778945,0.0011,40668.0,40664.0,0.693823]
[1646411779150,0.0011,40668.0,40666.0,0.15]
[1646411779346,0.0011,40668.0,40667.0,1.469983]
[1646411779647,0.05,40674.0,40667.0,1.469983]
[1646411779846,0.02,40679.0,40674.0,0.369283]
[1646411780046,0.02,40679.0,40676.0,0.369283]
[1646411780246,0.0162183,40679.0,40676.0,0.178583]
[1646411780645,0.0162183,40679.0,40676.0,0.0493]
[1646411780948,0.0162183,40679.0,40677.0,0.369073]
[1646411781150,0.0162183,40679.0,40678.0,0.0493]
[1646411782193,0.0162183,40679.0,40678.0,0.0993]
[1646411782594,0.0162183,40679.0,40678.0,0.0493]
[1646411784399,0.21455024,40679.0,40678.0,0.0493]
[1646411784595,0.45992423,40679.0,40678.0,0.0493]
[1646411784797,0.0162183,40679.0,40678.0,0.0493]
[1646411785247,0.0162183,40679.0,40678.0,0.418373]
[1646411785447,0.0162183,40679.0,40678.0,0.468373]
[1646411785844,0.0162183,40679.0,40678.0,0.768373]
[1646411788649,0.0162183,40679.0,40678.0,0.468373]
[1646411789096,0.0162183,40679.0,40678.0,1.519773]
[1646411789700,0.0162183,40679.0,40678.0,1.219773]
[1646411790700,0.24,40679.0,40678.0,1.40424129]
[1646411790902,0.24,40679.0,40678.0,1.50424129]
[1646411791100,0.24,40679.0,40678.0,1.55424129]
[1646411791300,0.24,40679.0,40678.0,1.50424129]
[1646411791501,0.051,40686.0,40682.0,0.7514]
[1646411791700,0.051,40686.0,40685.0,1.120473]
[1646411791701,0.001,40686.0,40685.0,1.120473]
[1646411791900,0.001,40686.0,40685.0,1.169773]
[1646411792100,0.001,40686.0,40685.0,1.469773]
[1646411793346,0.001,40686.0,40685.0,0.418373]
[1646411795740,0.001,40686.0,40685.0,0.718373]
[1646411795942,0.001,40686.0,40685.0,0.418373]
[1646411796140,0.001,40686.0,40685.0,0.718373]
[1646411796602,0.001,40686.0,40685.0,0.669073]
[1646411796800,0.001,40686.0,40685.0,0.369073]
[1646411798402,0.001,40686.0,40683.0,0.1229406]
[1646411798604,0.22350376,40686.0,40674.0,0.20927976]
[1646411798805,0.0493,40685.0,40675.0,0.1879772]
[1646411799004,0.0493,40685.0,40679.0,0.001]
[1646411799806,0.120967,40682.0,40679.0,0.001]
[1646411800005,0.061507,40682.0,40679.0,0.001]
[1646411800253,0.369073,40681.0,40679.0,0.001]
[1646411800453,0.061507,40682.0,40672.0,0.36150577]
[1646411800652,0.32750815,40683.0,40672.0,0.06150577]
[1646411800853,0.24,40681.0,40673.0,0.369073]
[1646411801055,0.24,40681.0,40675.0,0.369073]
[1646411801255,0.24,40681.0,40677.0,0.369073]
[1646411802154,0.24,40681.0,40677.0,0.419073]
[1646411802351,0.0493,40680.0,40677.0,0.05]
[1646411802554,0.519073,40678.0,40669.0,0.004]
[1646411802757,0.418373,40677.0,40669.0,0.004]
[1646411802952,0.05465077,40673.0,40665.0,0.369073]
[1646411803155,0.23571547,40669.0,40665.0,0.369073]
[1646411803554,0.0493,40672.0,40665.0,0.369073]
[1646411803753,0.0493,40672.0,40665.0,0.669073]
[1646411804495,0.0493,40672.0,40667.0,0.369073]
[1646411804692,0.0493,40672.0,40667.0,0.419073]
[1646411805093,0.0493,40672.0,40669.0,0.369073]
[1646411805295,0.0493,40672.0,40669.0,0.419073]
[1646411806093,0.0493,40672.0,40671.0,0.369073]
[1646411806293,0.061506,40678.0,40671.0,0.669073]
[1646411806493,0.061506,40678.0,40671.0,0.719073]
[1646411806893,0.0493,40679.0,40671.0,0.719073]
[1646411807094,0.28292934,40684.0,40674.0,0.06149475]
[1646411807297,0.33292934,40684.0,40675.0,0.669073]
[1646411807495,0.33292934,40684.0,40675.0,0.719073]
[1646411807955,0.27916863,40683.0,40675.0,0.719073]
[1646411808554,0.27916863,40683.0,40675.0,0.05]
[1646411808752,0.27916863,40683.0,40674.0,0.06149475]
[1646411808952,0.27916863,40683.0,40675.0,0.3]
[1646411809152,0.27916863,40683.0,40676.0,0.369073]
[1646411809554,0.05,40684.0,40676.0,0.369073]
[1646411809754,0.001,40686.0,40676.0,0.369073]
[1646411809953,0.001,40686.0,40678.0,0.06149163]
[1646411810157,0.001,40686.0,40682.0,0.20101204]
[1646411810354,0.001,40686.0,40683.0,0.669073]
[1646411810558,0.001,40686.0,40684.0,0.3814366]
[1646411810754,0.241,40686.0,40685.0,0.719073]
[1646411810953,0.241,40686.0,40685.0,1.470473]
[1646411811404,0.051,40696.0,40689.0,1.469073]
[1646411811613,0.001,40696.0,40693.0,0.369073]
[1646411811804,0.001,40696.0,40695.0,0.369073]
[1646411812007,0.001,40696.0,40695.0,0.669073]
[1646411812405,0.001,40696.0,40695.0,0.719073]
[1646411813606,0.001,40696.0,40695.0,3.1106626]
[1646411814007,0.001,40696.0,40695.0,4.0794966]
[1646411814206,0.0499,40709.0,40697.0,2.1514]
[1646411814408,0.001,40709.0,40705.0,0.06082699]
[1646411814606,0.001,40709.0,40706.0,0.669073]
[1646411814806,0.001,40709.0,40706.0,0.719073]
[1646411815008,0.001,40709.0,40706.0,0.419073]
[1646411815652,0.001,40709.0,40706.0,0.05]
[1646411815856,0.001,40709.0,40707.0,0.369073]
[1646411816055,0.25084604,40708.0,40707.0,0.419073]
[1646411816254,0.25084604,40708.0,40704.0,0.002]
[1646411816455,0.22084604,40708.0,40701.0,0.05]
[1646411816655,0.22084604,40708.0,40703.0,0.369073]
[1646411816855,0.22084604,40708.0,40703.0,0.419073]
[1646411817655,0.22084604,40708.0,40701.0,0.35]
[1646411817855,0.22084604,40708.0,40703.0,0.369073]
[1646411818056,0.22084604,40708.0,40704.0,0.369073]
[1646411818256,0.22084604,40708.0,40702.0,0.369073]
[1646411818459,0.22084604,40708.0,40696.0,0.12291565]
[1646411818658,0.22084604,40708.0,40697.0,0.05]
[1646411818659,0.15,40705.0,40697.0,0.05]
[1646411818896,0.061477,40702.0,40690.0,0.32990209]
[1646411819093,0.28674708,40699.0,40692.0,0.002]
[1646411819294,0.20580695,40697.0,40692.0,0.002]
[1646411819492,0.122954,40704.0,40692.0,0.002]
[1646411819493,0.32609019,40701.0,40692.0,0.002]
[1646411819893,0.061478,40698.0,40692.0,0.002]
[1646411820092,0.061478,40698.0,40693.0,0.369073]
[1646411820293,0.061478,40698.0,40693.0,0.05]
[1646411820492,0.18704468,40695.0,40691.0,0.369073]
[1646411820693,0.061478,40698.0,40691.0,0.05]
[1646411820893,0.301478,40698.0,40691.0,0.05]
[1646411821293,0.3010348,40698.0,40693.0,0.369073]
[1646411821496,0.3010348,40698.0,40692.0,0.369073]
[1646411821694,0.49717273,40698.0,40692.0,0.419073]
[1646411822093,0.3010348,40698.0,40692.0,0.419073]
[1646411824145,0.3010348,40698.0,40693.0,0.3]
[1646411824444,0.24,40698.0,40694.0,0.369073]
[1646411825645,0.24,40698.0,40696.0,0.369073]
[1646411825846,0.24,40698.0,40697.0,0.669073]
[1646411826249,0.24,40698.0,40697.0,1.420473]
[1646411826495,0.24,40698.0,40697.0,1.61844505]
[1646411826898,0.24,40698.0,40697.0,1.68354685]
[1646411827099,0.24,40698.0,40697.0,1.83354685]
[1646411827697,0.24,40698.0,40697.0,1.86516886]
[1646411827897,0.051,40709.0,40703.0,0.369073]
[1646411828097,0.001,40709.0,40705.0,0.369073]
[1646411829399,0.001,40709.0,40704.0,0.41144372]
[1646411829400,0.001,40713.0,40707.0,1.6514]
[1646411829600,0.001,40713.0,40708.0,0.73051236]
[1646411829902,0.001,40713.0,40708.0,0.78051236]
[1646411830361,0.001,40713.0,40709.0,0.369073]
[1646411830563,0.001,40713.0,40709.0,0.669073]
[1646411830963,0.001,40713.0,40711.0,0.369073]
[1646411831163,0.001,40713.0,40712.0,0.669073]
[1646411831563,0.241,40713.0,40712.0,0.669073]
[1646411832162,0.241,40713.0,40712.0,0.369073]
[1646411832961,0.44813829,40713.0,40712.0,0.369073]
[1646411833162,0.44813829,40713.0,40708.0,0.004]
[1646411833364,0.6524817,40713.0,40708.0,0.004]
[1646411833562,0.6524817,40713.0,40709.0,0.05]
[1646411833904,0.29644902,40711.0,40708.0,0.004]
[1646411834106,0.35789902,40711.0,40709.0,0.369073]
[1646411834503,0.35789902,40711.0,40704.0,0.369073]
[1646411834705,0.22676298,40710.0,40704.0,0.419073]
[1646411835003,0.35789902,40711.0,40704.0,0.419073]
[1646411835204,0.35789902,40711.0,40703.0,0.005]
[1646411836104,0.27045599,40708.0,40704.0,0.369073]
[1646411836304,0.35789902,40711.0,40703.0,0.005]
[1646411836507,0.35789902,40711.0,40700.0,0.67338212]
[1646411836705,0.35789902,40711.0,40700.0,0.72338212]
[1646411836904,0.35789902,40711.0,40700.0,1.47478212]
[1646411837304,0.35789902,40711.0,40701.0,0.3]
[1646411837504,0.35789902,40711.0,40702.0,0.369073]
[1646411837746,0.35789902,40711.0,40702.0,0.419073]
[1646411838351,0.35789902,40711.0,40703.0,0.06144984]
[1646411838551,0.35789902,40711.0,40704.0,0.369073]
[1646411838749,0.35789902,40711.0,40704.0,0.419073]
[1646411838949,0.06145,40711.0,40705.0,0.3]
[1646411839155,0.06145,40711.0,40706.0,0.369073]
[1646411839349,0.06145,40711.0,40706.0,0.419073]
[1646411839749,0.06145,40711.0,40706.0,0.48052002]
[1646411841251,0.241,40713.0,40706.0,0.48052002]
[1646411841806,0.24015928,40713.0,40706.0,0.48052002]
[1646411842202,0.24015928,40713.0,40707.0,0.20190054]
[1646411842503,0.24015928,40713.0,40708.0,0.369073]
[1646411842703,0.24015928,40713.0,40708.0,0.419073]
[1646411845154,0.31447853,40710.0,40708.0,0.419073]
[1646411845755,0.061448,40711.0,40708.0,0.419073]
[1646411846357,0.24015928,40713.0,40708.0,0.419073]
[1646411846756,0.53853001,40713.0,40708.0,0.419073]
[1646411847157,0.53853001,40713.0,40708.0,0.61768244]
[1646411847459,0.53853001,40713.0,40708.0,0.419073]
[1646411849299,0.25102573,40709.0,40708.0,0.419073]
[1646411849601,0.3,40712.0,40705.0,0.12288951]
[1646411849797,0.061454,40711.0,40704.0,0.004]
[1646411849997,0.26181595,40705.0,40704.0,0.004]
[1646411850199,0.26181595,40705.0,40704.0,0.373073]
[1646411850396,0.24015928,40713.0,40704.0,0.004]
[1646411850597,0.24015928,40713.0,40702.0,0.12289802]
[1646411850598,0.24884984,40709.0,40702.0,0.12289802]
[1646411850800,0.061458,40706.0,40702.0,0.12289802]
[1646411850996,0.061458,40706.0,40703.0,0.369073]
[1646411851397,0.061458,40706.0,40703.0,0.419073]
[1646411852200,0.061458,40706.0,40704.0,0.369073]
[1646411852397,0.06145,40709.0,40704.0,0.369073]
[1646411852659,0.34239809,40709.0,40704.0,0.419073]
[1646411852853,0.34239809,40709.0,40704.0,0.05]
[1646411853052,0.34239809,40709.0,40705.0,0.369073]
[1646411853255,0.34239809,40709.0,40705.0,0.419073]
[1646411853453,0.06145,40709.0,40706.0,0.369073]
[1646411853654,0.06145,40709.0,40703.0,0.369073]
[1646411854051,0.06145,40709.0,40703.0,0.419073]
[1646411854453,0.23628792,40712.0,40703.0,0.48052251]
[1646411855053,0.36811401,40713.0,40703.0,0.48052251]
[1646411856162,0.00015928,40713.0,40704.0,0.061438]
[1646411856400,0.00015928,40713.0,40707.0,0.06143817]
[1646411856603,0.00015928,40713.0,40708.0,0.369073]
[1646411856898,0.00015928,40713.0,40708.0,0.68463959]
[1646411857099,0.00015928,40713.0,40710.0,0.369073]
[1646411857502,0.00015928,40713.0,40710.0,1.170473]
[1646411857700,0.00015928,40713.0,40710.0,0.419073]
[1646411859400,0.00015928,40713.0,40710.0,1.170473]
[1646411859802,0.00015928,40713.0,40710.0,0.419073]
[1646411861051,0.29395203,40713.0,40710.0,0.419073]
[1646411861450,0.00015928,40713.0,40710.0,0.419073]
[1646411861850,0.24015928,40713.0,40710.0,0.419073]
[1646411864000,0.24015928,40713.0,40710.0,0.48051348]
[1646411864698,0.24015928,40713.0,40710.0,0.48040416]
[1646411866101,0.24015928,40713.0,40710.0,0.41896368]
[1646411866300,0.24015928,40713.0,40711.0,0.369073]
[1646411866501,0.24015928,40713.0,40710.0,0.06144431]
[1646411866902,0.24015928,40713.0,40711.0,0.369073]
[1646411867103,0.24015928,40713.0,40707.0,0.369073]
[1646411867403,0.24015928,40713.0,40706.0,0.12687634]
[1646411867404,0.26331802,40708.0,40706.0,0.12687634]
[1646411867652,0.26331802,40708.0,40706.0,0.004]
[1646411867855,0.21749815,40707.0,40706.0,0.004]
[1646411868552,0.21749815,40707.0,40699.0,0.369073]
[1646411868753,0.061462,40705.0,40699.0,0.369073]
[1646411869351,0.061462,40705.0,40699.0,0.48053376]
[1646411870253,0.00015928,40713.0,40699.0,0.48053376]
[1646411870456,0.00015928,40713.0,40700.0,0.18008264]
[1646411870655,0.00015928,40713.0,40704.0,0.06144705]
[1646411870855,0.00015928,40713.0,40705.0,0.369073]
[1646411871056,0.00015928,40713.0,40706.0,0.3]
[1646411871254,0.00015928,40713.0,40707.0,0.369073]
[1646411871499,0.24015928,40713.0,40707.0,0.419073]
[1646411871698,0.24015928,40713.0,40709.0,0.369073]
[1646411871699,0.29015928,40713.0,40709.0,0.369073]
[1646411872098,0.24015928,40713.0,40709.0,0.719073]
[1646411872899,0.24015928,40713.0,40709.0,0.92849557]
[1646411873103,0.24015928,40713.0,40709.0,0.719073]
[1646411874999,0.24015928,40713.0,40709.0,0.969073]
[1646411875251,0.24015928,40713.0,40709.0,0.719073]
[1646411876356,0.001,40718.0,40713.0,1.41516334]
[1646411876555,0.001,40718.0,40717.0,1.0014]
[1646411876752,0.001,40722.0,40718.0,2.520473]
[1646411876753,0.0011,40721.0,40718.0,2.520473]
[1646411876952,0.0011,40726.0,40718.0,2.520473]
[1646411876953,0.01,40729.0,40721.0,2.3014]
[1646411877155,0.01,40729.0,40728.0,1.0014]
[1646411877156,0.0091,40729.0,40728.0,1.0014]
[1646411877356,0.0091,40729.0,40728.0,1.370473]
[1646411877553,0.0091,40729.0,40728.0,0.769073]
[1646411878359,0.0091,40729.0,40728.0,1.069073]
[1646411878758,0.0091,40729.0,40728.0,1.118373]
[1646411879002,0.0091,40729.0,40728.0,1.30611808]
[1646411879398,0.0091,40729.0,40728.0,2.21592975]
[1646411879599,0.0091,40729.0,40728.0,2.05751808]
[1646411879801,0.0091,40729.0,40728.0,1.75751808]
[1646411879802,0.0001,40729.0,40728.0,1.75751808]
[1646411880000,0.001,40733.0,40732.0,0.7514]
[1646411880199,0.001,40733.0,40732.0,0.369073]
[1646411880399,0.001,40733.0,40732.0,1.820473]
[1646411880600,0.001,40733.0,40732.0,1.73954149]
[1646411880799,0.001,40733.0,40732.0,1.8473019]
[1646411881200,0.001,40733.0,40732.0,1.8718419]
[1646411881603,0.001,40738.0,40733.0,0.02454]
[1646411881804,0.001,40738.0,40737.0,0.77594]
[1646411882004,0.001,40738.0,40737.0,1.794313]
[1646411882204,0.03162323,40739.0,40737.0,2.10686319]
[1646411882404,0.001,40740.0,40738.0,1.445013]
[1646411882405,3.23e-06,40740.0,40738.0,1.445013]
[1646411882653,0.05,40745.0,40741.0,0.369073]
[1646411882953,0.0032,40754.0,40746.0,0.905013]
[1646411883158,0.122739,40765.0,40750.0,0.53594]
[1646411883357,0.21805963,40770.0,40762.0,0.25]
[1646411883557,0.01918182,40770.0,40763.0,1.205013]
[1646411883752,0.26382364,40765.0,40764.0,0.1]
[1646411883951,0.26382364,40765.0,40764.0,0.469073]
[1646411884153,0.26382364,40765.0,40764.0,0.369073]
[1646411884352,0.51780118,40765.0,40764.0,0.0493]
[1646411884950,0.061374,40763.0,40757.0,0.0493]
[1646411885151,0.28593153,40759.0,40758.0,0.369073]
[1646411885351,0.061374,40763.0,40758.0,0.419073]
[1646411885352,0.061374,40761.0,40758.0,0.419073]
[1646411885551,0.045,40759.0,40758.0,0.419073]
[1646411885751,0.045,40759.0,40758.0,0.414073]
[1646411885951,0.061374,40763.0,40758.0,0.414073]
[1646411886156,0.061374,40763.0,40758.0,0.714073]
[1646411886621,0.061374,40763.0,40759.0,0.12274011]
[1646411886820,0.061374,40763.0,40760.0,0.369073]
[1646411887320,0.20586968,40762.0,40761.0,0.369073]
[1646411887520,0.20586968,40762.0,40760.0,0.05]
[1646411887721,0.20586968,40762.0,40758.0,0.06136964]
[1646411887722,0.05,40761.0,40758.0,0.06136964]
[1646411887924,0.05,40761.0,40759.0,0.369073]
[1646411888125,0.28479353,40760.0,40759.0,0.369073]
[1646411888321,0.20586968,40762.0,40759.0,0.369073]
[1646411888322,0.20586968,40762.0,40759.0,0.419073]
[1646411888522,0.20586968,40762.0,40759.0,0.54181869]
[1646411889124,0.05,40761.0,40759.0,0.54181869]
[1646411889323,0.28427157,40761.0,40759.0,0.12274569]
[1646411889524,0.111374,40763.0,40758.0,0.06536964]
[1646411889724,0.122755,40760.0,40759.0,0.369073]
[1646411889926,0.111374,40763.0,40759.0,0.73044518]
[1646411890148,0.061374,40763.0,40759.0,0.73044518]
[1646411890349,0.061374,40763.0,40759.0,0.43044518]
[1646411890548,0.061374,40763.0,40759.0,0.48044518]
[1646411891549,0.301374,40763.0,40759.0,0.48044518]
[1646411892050,0.24,40763.0,40759.0,1.53184518]
[1646411892249,0.24,40763.0,40759.0,0.48044518]
[1646411892449,0.24,40763.0,40760.0,0.18767525]
[1646411892651,0.16610896,40762.0,40759.0,0.05]
[1646411893049,0.29380684,40761.0,40759.0,0.05]
[1646411893250,0.01652025,40760.0,40755.0,0.004]
[1646411893451,0.20067525,40760.0,40755.0,0.004]
[1646411893650,0.20067525,40760.0,40757.0,0.369073]
[1646411893900,0.05,40759.0,40756.0,0.369073]
[1646411894098,0.111384,40759.0,40756.0,0.43045305]
[1646411894299,0.25823996,40758.0,40756.0,0.43045305]
[1646411894899,0.111384,40759.0,40756.0,0.43045305]
[1646411895099,0.111384,40759.0,40756.0,0.48045305]